bitfinex-derivatives/quotes_BTCF0:USTF0_20251120
["timestamp","ask_amount","ask_price","bid_price","bid_amount"]
[1763619817321,0.07478052,92501.0,92500.0,0.54401]
[1763619819117,0.07478052,92501.0,92500.0,0.52283]
[1763619819425,0.07478052,92501.0,92500.0,0.54401]
[1763619822124,0.00016206,92518.0,92510.0,0.1297274]
[1763619823016,0.04618803,92511.0,92510.0,0.38232]
[1763619823214,0.04718803,92511.0,92510.0,0.38232]
[1763619823421,0.04825686,92511.0,92510.0,0.38232]
[1763619823922,0.04725686,92511.0,92510.0,0.38232]
[1763619824120,0.04825686,92511.0,92510.0,0.38232]
[1763619824523,0.04825686,92511.0,92510.0,0.02152]
[1763619825521,0.04825686,92511.0,92500.0,0.5]
[1763619825522,0.04399,92501.0,92500.0,0.52152]
[1763619825711,0.04618803,92501.0,92500.0,0.52152]
[1763619827227,0.00219803,92501.0,92500.0,0.52152]
[1763619827421,6.883e-05,92511.0,92510.0,0.02152]
[1763619827422,0.02282883,92511.0,92510.0,0.02152]
[1763619827623,0.04625686,92511.0,92510.0,0.1297274]
[1763619828122,0.04625686,92511.0,92510.0,0.02152]
[1763619828317,0.04399,92506.0,92505.0,0.12592]
[1763619828518,0.04618803,92506.0,92505.0,0.12592]
[1763619828924,0.04618803,92506.0,92505.0,0.2341333]
[1763619829119,0.04399,92501.0,92500.0,0.51076]
[1763619829327,0.04618803,92501.0,92500.0,0.5]
[1763619829525,0.04618803,92501.0,92500.0,0.51076]
[1763619829930,0.04618803,92501.0,92500.0,0.52152]
[1763619832724,0.04618803,92501.0,92500.0,0.5]
[1763619832924,0.04618803,92501.0,92500.0,0.51076]
[1763619834230,0.07348654,92501.0,92500.0,0.51076]
[1763619834628,0.07348654,92501.0,92500.0,0.52152]
[1763619836827,0.05225654,92501.0,92500.0,0.52152]
[1763619837729,0.07348654,92501.0,92500.0,0.52152]
[1763619839230,0.07348654,92501.0,92500.0,0.51076]
[1763619840034,0.17784654,92501.0,92500.0,0.31774057]
[1763619840623,0.21645817,92501.0,92500.0,0.31774057]
[1763619841528,0.17784654,92501.0,92500.0,0.31774057]
[1763619841832,0.21645817,92501.0,92500.0,0.31774057]
[1763619842132,0.17784654,92501.0,92500.0,0.31774057]
[1763619844523,0.21659359,92501.0,92500.0,0.31774057]
[1763619845433,0.17784654,92501.0,92500.0,0.31774057]
[1763619847433,0.17784654,92501.0,92500.0,0.33926057]
[1763619848633,0.07348654,92501.0,92500.0,0.33926057]
[1763619848836,0.17784654,92501.0,92500.0,0.33926057]
[1763619850024,0.17784654,92501.0,92500.0,0.32850057]
[1763619850335,0.17784654,92501.0,92500.0,0.33926057]
[1763619852131,0.07348654,92501.0,92500.0,0.33926057]
[1763619852432,0.02949654,92501.0,92500.0,0.33926057]
[1763619852633,0.00219803,92501.0,92500.0,0.33926057]
[1763619852829,0.02916088,92501.0,92500.0,0.33926057]
[1763619853335,0.35496088,92503.0,92502.0,0.01712]
[1763619853539,0.35496088,92503.0,92502.0,0.01931803]
[1763619853731,0.39912901,92503.0,92502.0,0.00219803]
[1763619854239,0.35496088,92503.0,92502.0,0.00219803]
[1763619854439,0.35596088,92503.0,92502.0,0.00219803]
[1763619855031,0.04350883,92511.0,92510.0,0.1082074]
[1763619855240,0.40503696,92511.0,92510.0,0.11040543]
[1763619855732,0.38401696,92511.0,92510.0,0.11040543]
[1763619856241,0.36159696,92511.0,92510.0,0.11040543]
[1763619856434,0.36159696,92511.0,92510.0,0.11140543]
[1763619857835,0.36086883,92511.0,92510.0,0.11140543]
[1763619858040,6.883e-05,92511.0,92510.0,0.11140543]
[1763619858341,0.00016206,92518.0,92517.0,0.1081992]
[1763619858643,0.00089019,92518.0,92517.0,0.11039723]
[1763619859438,0.00089019,92518.0,92517.0,0.00219803]
[1763619859439,0.04433019,92518.0,92517.0,0.00219803]
[1763619860836,0.04433019,92518.0,92517.0,0.00319803]
[1763619861037,0.04433019,92518.0,92517.0,0.00419803]
[1763619861238,0.04433019,92518.0,92517.0,0.11239723]
[1763619861742,0.04433019,92518.0,92517.0,0.00419803]
[1763619863343,0.04433019,92518.0,92517.0,0.00319803]
[1763619863542,0.04433019,92518.0,92517.0,0.00419803]
[1763619864444,0.04433019,92518.0,92517.0,0.001]
[1763619864645,0.04433019,92518.0,92517.0,0.002]
[1763619865741,0.04433019,92518.0,92517.0,0.00319803]
[1763619865932,0.04433019,92518.0,92517.0,0.00219803]
[1763619866242,0.04433019,92518.0,92517.0,0.00319803]
[1763619866644,0.0564,92505.0,92504.0,0.2125744]
[1763619866833,0.05712813,92505.0,92504.0,0.00219803]
[1763619868747,0.1518879,92501.0,92500.0,0.31774057]
[1763619869048,0.53986988,92501.0,92500.0,0.31774057]
[1763619873943,0.53986988,92501.0,92500.0,0.24774057]
[1763619878643,0.53986988,92501.0,92500.0,0.21274057]
[1763619881652,0.53986988,92501.0,92486.0,0.00027031]
[1763619881653,0.1082343,92487.0,92486.0,0.00027031]
[1763619881857,0.60057628,92487.0,92484.0,0.03411]
[1763619882059,0.1082366,92485.0,92484.0,0.03411]
[1763619882247,0.13541858,92485.0,92484.0,0.03411]
[1763619882644,0.13541858,92485.0,92477.0,0.00471616]
[1763619882645,0.1082437,92479.0,92477.0,0.00471616]
[1763619882850,0.13541858,92485.0,92466.0,0.03411]
[1763619882851,0.1082577,92467.0,92466.0,0.03411]
[1763619883152,0.1082577,92467.0,92466.0,0.05704]
[1763619883153,0.57418583,92467.0,92466.0,0.05704]
[1763619883347,0.57418583,92467.0,92456.0,0.01279]
[1763619883348,0.1082636,92462.0,92456.0,0.01279]
[1763619883543,0.36152813,92462.0,92461.0,0.04657994]
[1763619883742,0.46604813,92462.0,92461.0,0.04657994]
[1763619883941,0.46604813,92462.0,92461.0,0.15484464]
[1763619884152,0.46604813,92462.0,92461.0,0.04657994]
[1763619885056,0.36152813,92462.0,92461.0,0.04757994]
[1763619885253,0.46604813,92462.0,92461.0,0.04757994]
[1763619885453,0.46604813,92462.0,92461.0,0.04857994]
[1763619885652,0.36152813,92462.0,92461.0,0.04857994]
[1763619892262,0.03863151,92488.0,92461.0,0.04857994]
[1763619892263,0.3608,92478.0,92475.0,0.04425]
[1763619892448,0.3608,92478.0,92475.0,0.04644803]
[1763619892653,0.4654,92487.0,92475.0,0.40724803]
[1763619892863,0.4654,92487.0,92475.0,0.04644803]
[1763619892864,0.05520485,92485.0,92475.0,0.04644803]
[1763619893160,0.1082426,92480.0,92475.0,0.04644803]
[1763619893361,0.1082459,92478.0,92475.0,0.04644803]
[1763619893557,0.1082414,92481.0,92475.0,0.04644803]
[1763619894270,0.1082454,92478.0,92475.0,0.04644803]
[1763619896568,0.4654,92487.0,92475.0,0.04644803]
[1763619896569,0.1082407,92482.0,92475.0,0.04644803]
[1763619897352,0.1082439,92479.0,92475.0,0.04644803]
[1763619897561,0.1082471,92477.0,92475.0,0.04644803]
[1763619898063,0.02176215,92476.0,92475.0,0.04644803]
[1763619898956,0.04394215,92476.0,92475.0,0.04644803]
[1763619899462,0.04378,92464.0,92463.0,0.05704]
[1763619899666,0.04378,92464.0,92463.0,0.05923803]
[1763619899667,0.17823835,92464.0,92463.0,0.05923803]
[1763619900971,0.17823835,92464.0,92463.0,0.06023803]
[1763619901266,0.17823835,92464.0,92463.0,0.02451803]
[1763619901465,0.17823835,92464.0,92463.0,0.00419803]
[1763619901666,0.17323835,92464.0,92463.0,0.00419803]
[1763619902867,0.17323835,92464.0,92463.0,0.04788803]
[1763619903174,0.02619715,92464.0,92463.0,0.04788803]
[1763619905953,0.04543715,92464.0,92463.0,0.04788803]
[1763619906568,0.06467715,92464.0,92463.0,0.02621803]
[1763619906867,0.06467715,92464.0,92463.0,0.04788803]
[1763619907465,0.04543715,92464.0,92463.0,0.04788803]
[1763619908170,0.06467715,92464.0,92463.0,0.04788803]
[1763619909358,0.06467715,92464.0,92463.0,0.02621803]
[1763619909561,0.06467715,92464.0,92463.0,0.06139803]
[1763619910362,0.06467715,92464.0,92463.0,0.04788803]
[1763619910773,0.06467715,92464.0,92463.0,0.06139803]
[1763619911166,0.02619715,92464.0,92463.0,0.06139803]
[1763619911371,0.05791745,92489.0,92480.0,0.02167]
[1763619911668,0.04324,92489.0,92488.0,0.40668803]
[1763619912263,0.04324,92489.0,92488.0,0.51492113]
[1763619914667,0.04324,92489.0,92488.0,0.38501803]
[1763619914872,0.04324,92489.0,92488.0,0.51492113]
[1763619915257,0.04324,92489.0,92488.0,0.40668803]
[1763619916457,0.04324,92489.0,92488.0,0.51492113]
[1763619917568,0.04324,92489.0,92488.0,0.36299803]
[1763619917769,0.04324,92489.0,92488.0,0.38501803]
[1763619918871,0.04324,92489.0,92488.0,0.40668803]
[1763619919369,0.04324,92489.0,92488.0,0.04588803]
[1763619920560,0.04324,92489.0,92488.0,0.02421803]
[1763619920773,0.04324,92489.0,92488.0,0.04588803]
[1763619923366,0.02541378,92489.0,92488.0,0.15412113]
[1763619923680,0.05621215,92498.0,92497.0,0.04369]
[1763619923869,0.08162806,92498.0,92497.0,0.04588803]
[1763619924069,0.08162806,92498.0,92497.0,0.02421803]
[1763619924283,0.08162806,92498.0,92497.0,0.00219803]
[1763619924868,0.04324,92488.0,92487.0,0.40449]
[1763619925068,0.17688901,92488.0,92487.0,0.40668803]
[1763619925876,0.17688901,92488.0,92487.0,0.36299803]
[1763619926373,0.17688901,92488.0,92487.0,0.40668803]
[1763619926682,0.06865591,92488.0,92487.0,0.40668803]
[1763619927274,0.02541591,92488.0,92487.0,0.40668803]
[1763619927481,0.05773215,92498.0,92497.0,0.0436]
[1763619927784,0.08313956,92498.0,92497.0,0.04579803]
[1763619928572,0.08413956,92498.0,92497.0,0.04579803]
[1763619928773,0.08513956,92498.0,92497.0,0.04579803]
[1763619928972,0.08513956,92498.0,92497.0,0.02421803]
[1763619929378,0.08513956,92498.0,92497.0,0.04579803]
[1763619929686,0.07232956,92498.0,92497.0,0.04579803]
[1763619931472,0.04934956,92498.0,92497.0,0.04579803]
[1763619931670,0.07232956,92498.0,92497.0,0.04579803]
[1763619932780,0.04934956,92498.0,92497.0,0.04579803]
[1763619933371,0.07086956,92498.0,92497.0,0.04579803]
[1763619934677,0.07086956,92498.0,92497.0,0.40659803]
[1763619934877,0.08371956,92498.0,92497.0,0.40659803]
[1763619935483,0.19194106,92498.0,92497.0,0.40659803]
[1763619940782,0.08371956,92498.0,92497.0,0.40659803]
[1763619941682,0.19194096,92498.0,92497.0,0.40659803]
[1763619947193,0.19194096,92498.0,92497.0,0.38501803]
[1763619948288,0.19194096,92498.0,92497.0,0.40674803]
[1763619951398,0.19194096,92498.0,92497.0,0.36299803]
[1763619951697,0.19194096,92498.0,92479.0,0.36096215]
[1763619951698,0.1517931,92488.0,92487.0,0.40398]
[1763619951888,0.17720051,92488.0,92487.0,0.40617803]
[1763619955790,0.17720051,92488.0,92487.0,0.36299803]
[1763619956091,0.21598521,92488.0,92487.0,0.3608]
[1763619957002,0.21598521,92488.0,92487.0,0.38225]
[1763619957196,0.17720051,92488.0,92487.0,0.38225]
[1763619957389,0.17720051,92488.0,92487.0,0.33225]
[1763619957592,0.17720051,92488.0,92487.0,0.3108]
[1763619957593,0.21598521,92488.0,92487.0,0.3108]
[1763619958196,0.17720051,92488.0,92487.0,0.3108]
[1763619958595,0.1518025,92480.0,92479.0,0.04334215]
[1763619958792,0.17720991,92480.0,92479.0,0.04554018]
[1763619960496,0.06896741,92480.0,92479.0,0.04554018]
[1763619960701,0.04686741,92480.0,92479.0,0.04554018]
[1763619961501,0.06896741,92480.0,92479.0,0.04554018]
[1763619966601,0.08166741,92480.0,92479.0,0.04554018]
[1763619967691,0.08166741,92480.0,92479.0,0.00016215]
[1763619967895,0.1660642,92470.0,92469.0,0.3608]
[1763619968199,0.19124037,92470.0,92469.0,0.3608]
[1763619968504,0.19124037,92470.0,92461.0,0.04531191]
[1763619968505,0.1533736,92462.0,92461.0,0.04531191]
[1763619968696,0.1533736,92462.0,92461.0,0.04750994]
[1763619969798,0.1533736,92462.0,92461.0,0.04850994]
[1763619970304,0.1533736,92462.0,92461.0,0.04950994]
[1763619971200,0.1303436,92462.0,92461.0,0.04950994]
[1763619971406,0.00016215,92471.0,92470.0,0.1082542]
[1763619971598,0.0127,92490.0,92470.0,0.1082542]
[1763619971599,0.0127,92490.0,92489.0,0.108232]
[1763619971799,0.0127,92490.0,92489.0,0.47123003]
[1763619972408,0.0106929,92490.0,92489.0,0.47123003]
[1763619972705,0.1209058,92512.0,92501.0,0.1082179]
[1763619972706,0.0127,92512.0,92501.0,0.1082179]
[1763619973006,0.05781,92502.0,92501.0,0.47121593]
[1763619973796,0.05781,92502.0,92501.0,0.47221593]
[1763619974001,0.05781,92502.0,92501.0,0.36399803]
[1763619974800,0.05781,92502.0,92501.0,0.36499803]
[1763619977099,0.03478,92502.0,92501.0,0.36499803]
[1763619977303,0.0127,92502.0,92501.0,0.36499803]
[1763619978107,0.02224215,92511.0,92510.0,0.1082073]
[1763619978310,0.02224215,92511.0,92510.0,0.11040533]
[1763619978501,0.04527215,92511.0,92510.0,0.11040533]
[1763619979107,0.04527215,92511.0,92510.0,0.11140533]
[1763619979312,0.00016215,92511.0,92510.0,0.11140533]
[1763619979621,0.00016215,92511.0,92510.0,0.47320533]
[1763619983518,0.05781,92519.0,92518.0,0.108198]
[1763619983720,0.05781,92519.0,92518.0,0.47119603]
[1763619984418,0.0127,92519.0,92518.0,0.47119603]
[1763619986323,0.05781,92519.0,92518.0,0.36299803]
[1763619990429,0.05781,92519.0,92518.0,0.00219803]
[1763619990635,0.1528562,92511.0,92510.0,0.3608]
[1763619990837,0.1528562,92511.0,92510.0,0.36299803]
[1763619991934,0.1528562,92511.0,92510.0,0.36399803]
[1763619992136,0.1528562,92511.0,92510.0,0.36499803]
[1763619994538,0.1528562,92511.0,92510.0,0.00419803]
[1763619995731,0.04465,92511.0,92510.0,0.00419803]
[1763619996529,0.1528562,92511.0,92510.0,0.00419803]
[1763619998638,0.04465,92511.0,92510.0,0.00419803]
[1763619999638,0.06951442,92511.0,92510.0,0.00419803]
[1763620005038,0.04321,92498.0,92497.0,0.3608]
[1763620005346,0.05861803,92498.0,92497.0,0.46975527]
[1763620006140,0.05961803,92498.0,92497.0,0.46975527]
[1763620007336,0.06061803,92498.0,92497.0,0.46975527]
[1763620010435,0.00016215,92507.0,92506.0,0.108212]
[1763620010639,0.00016215,92507.0,92506.0,0.21342467]
[1763620011934,0.00016215,92507.0,92506.0,0.21442467]
[1763620012134,0.00016215,92507.0,92506.0,0.21542467]
[1763620013437,0.03459,92519.0,92511.0,0.1082062]
[1763620013644,0.05591,92519.0,92518.0,0.10893067]
[1763620013949,0.08304354,92519.0,92518.0,0.10893067]
[1763620015747,0.08404354,92519.0,92518.0,0.00073267]
[1763620017244,0.08504354,92519.0,92518.0,0.00073267]
[1763620017748,0.08404354,92519.0,92518.0,0.00073267]
[1763620019433,0.08184551,92519.0,92518.0,0.00073267]
[1763620020945,0.08404354,92519.0,92518.0,0.00073267]
[1763620021242,0.08404354,92519.0,92518.0,0.10521267]
[1763620021633,0.05910803,92519.0,92518.0,0.10521267]
[1763620021833,0.08403136,92519.0,92518.0,0.00073267]
[1763620022245,0.08403136,92519.0,92491.0,0.10444]
[1763620022246,0.1649414,92498.0,92491.0,0.10444]
[1763620022440,0.1649414,92498.0,92497.0,0.4690226]
[1763620022441,0.05891803,92498.0,92497.0,0.4690226]
[1763620023538,0.05891803,92498.0,92497.0,0.4700226]
[1763620023740,0.03549,92498.0,92497.0,0.4700226]
[1763620023944,0.013,92505.0,92504.0,0.1082144]
[1763620024251,0.03549,92505.0,92504.0,0.1082144]
[1763620025136,0.013,92505.0,92504.0,0.1082144]
[1763620026148,0.03549,92505.0,92504.0,0.1082144]
[1763620026546,0.05672,92505.0,92504.0,0.1082144]
[1763620027140,0.05672,92505.0,92504.0,0.2126944]
[1763620027141,0.05891803,92505.0,92504.0,0.2126944]
[1763620028548,0.16713123,92505.0,92504.0,0.2126944]
[1763620028754,0.16713123,92505.0,92504.0,0.1082144]
[1763620028956,0.16713123,92505.0,92504.0,0.2126944]
[1763620029159,0.05891803,92505.0,92504.0,0.2126944]
[1763620029956,0.05991803,92505.0,92504.0,0.2126944]
[1763620030650,0.05891803,92505.0,92504.0,0.2126944]
[1763620031250,0.05891803,92505.0,92497.0,0.3608]
[1763620031251,0.05672,92498.0,92497.0,0.4690218]
[1763620031449,0.05891803,92498.0,92497.0,0.4690218]
[1763620031650,0.05891803,92498.0,92497.0,0.3608]
[1763620032247,0.05891803,92498.0,92497.0,0.4690226]
[1763620033464,0.05991803,92498.0,92497.0,0.4690226]
[1763620033651,0.06091803,92498.0,92497.0,0.3608]
[1763620040262,0.08582732,92498.0,92497.0,0.3608]
[1763620046056,0.19404872,92498.0,92497.0,0.3608]
[1763620046364,0.19403913,92498.0,92497.0,0.3608]
[1763620048862,0.08581773,92498.0,92497.0,0.3608]
[1763620049961,0.08481773,92498.0,92497.0,0.3608]
[1763620050260,0.08381773,92498.0,92497.0,0.3608]
[1763620050856,0.05891803,92498.0,92497.0,0.3608]
[1763620056276,0.08385984,92498.0,92497.0,0.3608]
[1763620056574,0.08585984,92498.0,92497.0,0.3608]
[1763620057865,0.08485984,92498.0,92497.0,0.3608]
[1763620058061,0.08385984,92498.0,92497.0,0.3608]
[1763620058675,0.08585984,92498.0,92497.0,0.3608]
[1763620059277,0.04537,92497.0,92496.0,0.1082231]
[1763620059473,0.07250984,92497.0,92496.0,0.1082231]
[1763620060780,0.07350984,92497.0,92496.0,0.1082231]
[1763620061180,0.07450984,92497.0,92496.0,0.1082231]
[1763620061675,0.02913984,92497.0,92496.0,0.1082231]
[1763620061979,0.00419803,92497.0,92496.0,0.1082231]
[1763620062569,0.00319803,92497.0,92496.0,0.1082231]
[1763620062769,0.013,92505.0,92504.0,0.1082144]
[1763620062975,0.013,92505.0,92504.0,0.2126544]
[1763620064173,0.06056803,92505.0,92497.0,0.1082219]
[1763620064375,0.01365,92496.0,92495.0,0.05518035]
[1763620064580,0.01365,92496.0,92495.0,0.10444]
[1763620064978,0.01365,92502.0,92496.0,0.1082238]
[1763620065182,0.06121803,92502.0,92501.0,0.1082179]
[1763620065581,0.0371002,92526.0,92525.0,0.1081898]
[1763620065782,0.06148823,92526.0,92523.0,0.1081913]
[1763620065977,0.04537,92524.0,92520.0,0.10444]
[1763620066180,0.04756803,92521.0,92520.0,0.10444]
[1763620067673,0.04856803,92521.0,92520.0,0.10444]
[1763620067874,0.04956803,92521.0,92520.0,0.10444]
[1763620068486,0.04537,92512.0,92511.0,0.10836835]
[1763620068787,0.04756803,92512.0,92511.0,0.21280835]
[1763620073979,0.15577303,92512.0,92511.0,0.00016215]
[1763620078096,0.15577303,92512.0,92480.0,0.2595014]
[1763620078097,0.04537,92483.0,92480.0,0.2595014]
[1763620078389,0.04756803,92482.0,92481.0,0.087]
[1763620078687,0.04756803,92482.0,92481.0,0.10448]
[1763620079585,0.04537,92481.0,92480.0,0.001]
[1763620079789,0.04756803,92481.0,92478.0,0.1082437]
[1763620080287,0.00219803,92481.0,92480.0,0.001]
[1763620080487,0.02537803,92481.0,92480.0,0.001]
[1763620080680,0.02537803,92481.0,92480.0,0.002]
[1763620080681,0.04756803,92481.0,92480.0,0.002]
[1763620080881,0.04756803,92481.0,92480.0,0.001]
[1763620081588,0.04756803,92481.0,92480.0,0.002]
[1763620084487,0.01365,92484.0,92480.0,0.002]
[1763620084488,0.01365,92484.0,92481.0,0.1082413]
[1763620084786,0.03672,92490.0,92489.0,0.1082319]
[1763620085690,0.06116803,92490.0,92489.0,0.1082319]
[1763620086091,0.04532,92489.0,92488.0,0.1082321]
[1763620086292,0.04751803,92489.0,92488.0,0.1082321]
[1763620087285,0.04751803,92489.0,92488.0,0.1092321]
[1763620088588,0.04751803,92489.0,92488.0,0.1102321]
[1763620095601,0.01365,92496.0,92495.0,0.1082249]
[1763620096689,0.00016215,92505.0,92501.0,0.1082179]
[1763620096890,0.00016215,92505.0,92501.0,0.2126979]
[1763620097090,0.03672,92502.0,92501.0,0.2126979]
[1763620097292,0.01365,92502.0,92501.0,0.2126979]
[1763620098598,0.03672,92502.0,92501.0,0.2126979]
[1763620098806,0.01365,92502.0,92501.0,0.2126979]
[1763620099709,0.05897,92502.0,92501.0,0.2126979]
[1763620107503,0.06116803,92502.0,92501.0,0.2126979]
[1763620121205,0.01365,92502.0,92501.0,0.2126979]
[1763620121514,0.03596,92502.0,92501.0,0.2126979]
[1763620121714,0.05911,92502.0,92501.0,0.2126979]
[1763620123015,0.06130803,92502.0,92501.0,0.2126979]
[1763620142524,0.00016215,92505.0,92501.0,0.2126979]
[1763620142525,0.00016215,92505.0,92504.0,0.1082145]
[1763620142728,0.05834,92514.0,92513.0,0.1082039]
[1763620143023,0.05834,92514.0,92501.0,0.108218]
[1763620143024,0.04515,92502.0,92501.0,0.108218]
[1763620143229,0.05831,92495.0,92494.0,0.09720861]
[1763620143417,0.04515,92493.0,92492.0,0.00016215]
[1763620143620,0.04734803,92493.0,92492.0,0.00016215]
[1763620143819,0.04734803,92493.0,92492.0,0.18247479]
[1763620145117,0.04734803,92493.0,92492.0,0.10456215]
[1763620148430,0.04734803,92493.0,92492.0,0.00016215]
[1763620148630,0.04734803,92493.0,92492.0,0.10456215]
[1763620150337,0.04834803,92493.0,92492.0,0.10456215]
[1763620151736,0.08834803,92493.0,92492.0,0.10456215]
[1763620152128,0.08734803,92493.0,92492.0,0.10456215]
[1763620160537,0.08734803,92493.0,92492.0,0.00016215]
[1763620161436,0.11236357,92493.0,92492.0,0.00016215]
[1763620162233,0.08834803,92493.0,92492.0,0.00016215]
[1763620164843,0.08734803,92493.0,92492.0,0.00016215]
[1763620167745,0.08834803,92493.0,92492.0,0.00016215]
[1763620172247,0.08734803,92493.0,92492.0,0.00016215]
[1763620174342,0.08515,92493.0,92492.0,0.00016215]
[1763620174741,0.08734803,92493.0,92492.0,0.00016215]
[1763620191770,0.08734803,92493.0,92492.0,0.72176215]
[1763620194275,0.08734803,92493.0,92492.0,0.82612215]
[1763620204078,0.08734803,92493.0,92492.0,2.32612215]
[1763620208294,0.08006639,92493.0,92492.0,2.32612215]
[1763620208597,0.00016215,92502.0,92492.0,2.32612215]
[1763620208598,0.00016215,92502.0,92501.0,0.1091379]
[1763620208891,0.00016215,92502.0,92501.0,0.5742979]
[1763620209282,0.00016215,92502.0,92501.0,0.65214404]
[1763620209680,0.05757,92512.0,92511.0,0.1091262]
[1763620209881,0.03643,92512.0,92511.0,0.5742862]
[1763620210096,0.03643,92512.0,92511.0,0.6521283]
[1763620210396,0.03643,92512.0,92511.0,0.5742862]
[1763620210693,0.05757,92512.0,92511.0,0.5742862]
[1763620213482,0.05757,92516.0,92515.0,0.1091216]
[1763620213688,0.01316,92520.0,92515.0,0.1091216]
[1763620213689,0.05757,92520.0,92519.0,0.1091169]
[1763620213896,0.05757,92520.0,92519.0,0.2134769]
[1763620214596,0.05976803,92520.0,92519.0,0.10482]
[1763620214798,0.05976803,92520.0,92519.0,0.10436]
[1763620215098,0.05976803,92520.0,92519.0,0.2134769]
[1763620215798,0.06076803,92520.0,92519.0,0.2134769]
[1763620217697,0.001,92520.0,92519.0,0.2134769]
[1763620218401,0.001,92520.0,92519.0,0.22446811]
[1763620219802,0.0578402,92526.0,92525.0,0.1091099]
[1763620220104,0.0578402,92526.0,92525.0,0.4699099]
[1763620220399,0.0367002,92526.0,92525.0,0.4699099]
[1763620221097,0.0377002,92526.0,92525.0,0.4699099]
[1763620221603,0.0012702,92526.0,92525.0,0.4699099]
[1763620221798,0.0022702,92526.0,92525.0,0.4699099]
[1763620223296,0.01316,92544.0,92543.0,0.00092]
[1763620223306,0.05757,92544.0,92543.0,0.00092]
[1763620223496,0.05976803,92544.0,92543.0,0.9350488]
[1763620224007,0.05976803,92544.0,92543.0,0.82688]
[1763620224698,0.05976803,92544.0,92543.0,0.82642]
[1763620225698,0.05976803,92544.0,92543.0,0.82742]
[1763620226102,0.05976803,92544.0,92543.0,0.9345888]
[1763620226805,0.05976803,92544.0,92543.0,0.82642]
[1763620226999,0.05976803,92544.0,92543.0,0.82596]
[1763620227606,0.05976803,92544.0,92543.0,0.82642]
[1763620229005,0.05976803,92544.0,92543.0,0.7216]
[1763620229304,0.05976803,92544.0,92543.0,0.39512]
[1763620230401,0.06076803,92544.0,92543.0,0.5032888]
[1763620231003,0.06176803,92544.0,92543.0,0.5032888]
[1763620231198,0.06176803,92544.0,92543.0,0.2908]
[1763620231708,0.06076803,92544.0,92543.0,0.2918]
[1763620231915,0.05976803,92544.0,92543.0,0.2928]
[1763620232509,0.05976803,92544.0,92543.0,0.2908]
[1763620232702,0.05976803,92544.0,92543.0,0.2928]
[1763620233413,0.05976803,92544.0,92543.0,0.4009688]
[1763620234211,0.05976803,92544.0,92543.0,0.2928]
[1763620234711,0.05976803,92544.0,92543.0,0.2918]
[1763620235205,0.05976803,92544.0,92543.0,0.2928]
[1763620236307,0.08439718,92544.0,92543.0,0.31413]
[1763620238014,0.08439718,92544.0,92543.0,0.33698]
[1763620239201,0.08439718,92544.0,92543.0,0.2928]
[1763620239607,0.08439718,92544.0,92543.0,0.31413]
[1763620240012,0.08439718,92544.0,92543.0,0.33698]
[1763620241206,0.08439718,92544.0,92543.0,0.33598]
[1763620241407,0.08439718,92544.0,92543.0,0.33698]
[1763620243911,0.08439718,92544.0,92543.0,0.33598]
[1763620244111,0.08439718,92544.0,92543.0,0.33698]
[1763620247614,0.08439718,92544.0,92543.0,0.33598]
[1763620247809,0.08439718,92544.0,92543.0,0.33698]
[1763620248622,0.08439718,92544.0,92543.0,0.33598]
[1763620248920,0.08439718,92544.0,92543.0,0.33698]
[1763620249917,0.07123718,92544.0,92543.0,0.33698]
[1763620250819,0.07123718,92544.0,92543.0,0.33598]
[1763620251019,0.07123718,92544.0,92543.0,0.33698]
[1763620251919,0.08495718,92544.0,92543.0,0.33698]
[1763620253824,0.08495718,92544.0,92543.0,0.33598]
[1763620254026,0.08495718,92544.0,92543.0,0.33698]
[1763620255818,0.07123718,92544.0,92543.0,0.33698]
[1763620256432,0.08495718,92544.0,92543.0,0.33698]
[1763620256815,0.08495718,92544.0,92543.0,0.33598]
[1763620257015,0.08495718,92544.0,92543.0,0.33698]
[1763620257215,0.07123718,92544.0,92543.0,0.33698]
[1763620257436,0.07123718,92544.0,92543.0,0.33598]
[1763620257621,0.07123718,92544.0,92543.0,0.33698]
[1763620260430,0.07123718,92544.0,92532.0,0.04418]
[1763620260431,0.1515105,92533.0,92532.0,0.04418]
[1763620260625,0.53913768,92533.0,92532.0,0.04418]
[1763620263732,0.43095718,92533.0,92532.0,0.04418]
[1763620265634,0.1532364,92528.0,92527.0,0.02182]
[1763620265929,0.1532437,92524.0,92523.0,0.108192]
[1763620266232,0.15544173,92524.0,92523.0,0.108192]
[1763620266533,0.04724803,92524.0,92523.0,1.630012]
[1763620266836,0.04724803,92524.0,92523.0,1.52182]
[1763620266837,0.07201946,92524.0,92523.0,1.52182]
[1763620267333,0.04505,92517.0,92516.0,0.00016215]
[1763620267537,0.04724803,92517.0,92516.0,0.00016215]
[1763620267734,0.07200989,92517.0,92516.0,1.50016215]
[1763620268932,0.07200989,92517.0,92516.0,0.00016215]
[1763620269445,0.04505,92501.0,92500.0,0.1527882]
[1763620269622,0.04724803,92501.0,92500.0,0.1527882]
[1763620270021,0.04724803,92501.0,92500.0,1.6527882]
[1763620270225,0.00219803,92501.0,92500.0,1.6659982]
[1763620270423,0.02293215,92510.0,92509.0,0.1527786]
[1763620270630,0.00236018,92510.0,92509.0,0.1527786]
[1763620270823,0.02513018,92510.0,92509.0,0.1527786]
[1763620271028,0.00236018,92510.0,92509.0,0.1527786]
[1763620272529,0.00236018,92510.0,92509.0,0.1537786]
[1763620272739,0.00236018,92510.0,92509.0,0.1547786]
[1763620274031,0.46512,92524.0,92523.0,0.04457]
[1763620274032,0.3608,92524.0,92523.0,0.04457]
[1763620274527,0.36299803,92524.0,92523.0,0.04457]
[1763620275036,0.06901163,92540.0,92538.0,0.04457]
[1763620275037,0.1532244,92539.0,92538.0,0.04457]
[1763620275233,0.07196588,92539.0,92538.0,0.04457]
[1763620276128,0.04724803,92539.0,92538.0,0.04457]
[1763620276326,0.04824803,92539.0,92538.0,0.04457]
[1763620276730,0.04924803,92539.0,92538.0,0.04457]
[1763620277133,0.04824803,92539.0,92538.0,0.04457]
[1763620277334,0.04724803,92539.0,92538.0,0.04457]
[1763620278937,0.04824803,92539.0,92538.0,0.04457]
[1763620279238,0.00319803,92539.0,92538.0,0.05586]
[1763620279444,0.04924803,92539.0,92538.0,0.04457]
[1763620279645,0.04824803,92539.0,92538.0,0.04457]
[1763620279839,0.04824803,92539.0,92538.0,0.02182]
[1763620280143,0.04505,92531.0,92530.0,0.04457]
[1763620280441,0.04724803,92531.0,92530.0,0.04457]
[1763620280836,0.02496803,92531.0,92530.0,0.04457]
[1763620281035,0.04724803,92531.0,92530.0,0.04457]
[1763620284237,0.00219803,92531.0,92530.0,0.152754]
[1763620286946,0.02496803,92531.0,92530.0,0.04457]
[1763620287246,0.04724803,92531.0,92530.0,0.04457]